bitfinex-derivatives/quotes_SOLF0:USTF0_20241101
["timestamp","ask_amount","ask_price","bid_price","bid_amount"]
[1730430107265,14.21412661,167.62,167.51,14.40657796]
[1730430108165,2.9868,167.6,167.53,2.9878]
[1730430108358,2.9868,167.6,167.53,6.3678]
[1730430108559,11.25289514,167.6,167.54,8.26609514]
[1730430109263,8.26609514,167.56,167.53,3.38]
[1730430109769,11.25349514,167.56,167.55,1.49410056]
[1730430109952,8.26609514,167.56,167.55,1.49410056]
[1730430110764,8.26609514,167.56,167.53,3.38]
[1730430110964,8.26609514,167.57,167.53,3.38]
[1730430111764,1.3017,167.62,167.55,11.25359514]
[1730430111968,2.7373,167.63,167.58,8.26609514]
[1730430111969,9.64579514,167.63,167.58,8.26609514]
[1730430112262,3.36,167.65,167.58,8.26609514]
[1730430112263,8.26609514,167.65,167.58,8.26609514]
[1730430112467,1.2873,167.67,167.58,3.36]
[1730430113272,2.9859,167.65,167.58,6.347]
[1730430113464,1.2873,167.67,167.58,3.36]
[1730430114069,2.9862,167.63,167.58,3.36]
[1730430114953,12.90781731,167.65,167.58,3.36]
[1730430115160,2.9864,167.62,167.58,3.36]
[1730430115372,12.90781731,167.65,167.58,3.36]
[1730430115556,2.9864,167.62,167.58,3.36]
[1730430115957,12.90781731,167.65,167.58,3.36]
[1730430116661,2.9862,167.63,167.58,3.36]
[1730430116855,12.90781731,167.65,167.58,3.36]
[1730430117260,2.9865,167.62,167.58,3.36]
[1730430119263,12.90781731,167.65,167.58,3.36]
[1730430119575,2.9861,167.64,167.59,1.49376807]
[1730430119767,2.9861,167.64,167.58,3.36]
[1730430120072,2.9862,167.63,167.59,1.49376879]
[1730430120276,2.9862,167.63,167.58,3.36]
[1730430120574,2.9862,167.63,167.59,1.49374834]
[1730430120763,2.9862,167.63,167.58,3.36]
[1730430121374,12.90781731,167.63,167.58,3.36]
[1730430121763,12.90781731,167.63,167.54,4.6716]
[1730430121969,12.90781731,167.63,167.55,1.49392355]
[1730430122165,2.9869,167.59,167.56,1.49392355]
[1730430122358,1.3553,167.62,167.57,1.49392355]
[1730430122567,2.6269,167.62,167.54,3.36]
[1730430122767,2.987,167.59,167.55,1.49392556]
[1730430122982,2.987,167.59,167.56,1.49392556]
[1730430123275,2.987,167.59,167.57,1.49392433]
[1730430123474,2.987,167.59,167.53,2.9879]
[1730430123673,2.987,167.59,167.54,1.49394953]
[1730430123860,2.987,167.59,167.55,1.49394953]
[1730430124065,2.987,167.59,167.56,1.49394953]
[1730430124272,2.987,167.59,167.53,2.9879]
[1730430124475,2.987,167.59,167.54,1.49395597]
[1730430124671,2.9868,167.6,167.55,1.49395597]
[1730430124976,14.28381731,167.61,167.52,3.36]
[1730430125177,2.9872,167.58,167.53,1.49405757]
[1730430125480,2.9872,167.58,167.54,1.49405757]
[1730430125681,2.9872,167.58,167.55,1.49405757]
[1730430125879,2.9872,167.58,167.52,3.36]
[1730430126072,2.9873,167.57,167.53,1.49411099]
[1730430126272,2.9873,167.57,167.54,1.49411099]
[1730430126587,2.9873,167.57,167.52,3.36]
[1730430126774,2.9873,167.57,167.53,1.49411]
[1730430126973,14.28381731,167.61,167.54,1.49411]
[1730430127173,14.28381731,167.61,167.51,3.36]
[1730430127379,12.90781731,167.58,167.52,1.49412946]
[1730430127577,2.9879,167.54,167.5,1.35932129]
[1730430127768,2.9879,167.54,167.51,1.4942872]
[1730430127963,2.9879,167.54,167.5,1.35932129]
[1730430128163,2.9879,167.54,167.51,1.49431641]
[1730430128374,2.9879,167.54,167.5,1.35932129]
[1730430128573,2.9879,167.54,167.51,1.49431323]
[1730430128769,2.9879,167.54,167.5,1.35932129]
[1730430129082,2.9879,167.54,167.51,1.49432662]
[1730430129269,2.9879,167.54,167.5,1.35932129]
[1730430129470,2.9879,167.54,167.51,1.49432662]
[1730430129675,2.9883,167.51,167.5,1.35932129]
[1730430130776,15.89581731,167.53,167.5,1.35932129]
[1730430131168,1.2995,167.54,167.5,1.35932129]
[1730430132282,4.2873,167.54,167.5,1.35932129]
[1730430133779,2.9879,167.53,167.5,1.35932129]
[1730430135865,14.20731731,167.54,167.5,1.35932129]
[1730430136080,2.9882,167.52,167.5,1.35932129]
[1730430136879,12.90781731,167.56,167.5,1.35932129]
[1730430137085,2.9873,167.57,167.5,1.35932129]
[1730430137275,2.9873,167.57,167.5,4.71932129]
[1730430137475,2.9873,167.57,167.51,1.49425337]
[1730430137674,2.9873,167.57,167.5,4.71932129]
[1730430137983,2.9873,167.57,167.51,1.49424143]
[1730430138180,2.9873,167.57,167.5,4.71932129]
[1730430138380,2.9873,167.57,167.51,4.48242346]
[1730430138577,12.90781731,167.57,167.5,4.71932129]
[1730430138881,2.9879,167.54,167.5,4.71932129]
[1730430139272,12.90781731,167.55,167.5,4.71932129]
[1730430139472,2.988,167.53,167.5,4.71932129]
[1730430139988,2.9876,167.55,167.5,4.71932129]
[1730430141687,2.9878,167.54,167.5,4.71932129]
[1730430143398,12.90781731,167.59,167.5,4.71932129]
[1730430143779,16.79321731,167.61,167.5,17.6271386]
[1730430143994,2.9868,167.6,167.54,2.9876]
[1730430144293,0.13721959,167.68,167.53,12.90781731]
[1730430144294,12.90781731,167.64,167.53,12.90781731]
[1730430144590,12.90781731,167.64,167.56,2.9873]
[1730430144591,2.9863,167.62,167.56,2.9873]
[1730430144981,2.9861,167.63,167.57,2.9872]
[1730430145184,2.9861,167.63,167.55,3.36]
[1730430145698,2.9866,167.61,167.55,3.36]
[1730430150004,2.9863,167.62,167.55,6.3474]
[1730430150197,12.90781731,167.64,167.55,3.36]
[1730430150878,2.9863,167.63,167.56,2.9873]
[1730430151995,2.9863,167.62,167.56,2.9873]
[1730430152794,12.90781731,167.64,167.55,3.36]
[1730430152989,2.9869,167.59,167.54,3.36]
[1730430153191,12.90781731,167.61,167.53,3.36]
[1730430153893,1.2476,167.6,167.53,3.36]
[1730430154097,2.9874,167.56,167.53,3.36]
[1730430154803,2.6079,167.6,167.53,3.36]
[1730430155498,2.9872,167.57,167.53,3.36]
[1730430157886,2.9872,167.57,167.51,6.3482]
[1730430158095,12.90781731,167.58,167.52,1.4941963]
[1730430158298,12.90781731,167.58,167.5,1.35932129]
[1730430158496,1.336,167.59,167.51,1.4943047]
[1730430158497,12.90781731,167.56,167.51,1.4943047]
[1730430158805,12.90781731,167.56,167.5,1.35932129]
[1730430159403,2.9879,167.53,167.5,1.35932129]
[1730430159705,12.90781731,167.54,167.5,1.35932129]
[1730430159901,2.988,167.53,167.5,1.35932129]
[1730430160101,12.90781731,167.54,167.5,1.35932129]
[1730430161406,2.9882,167.52,167.5,1.35932129]
[1730430161704,12.90781731,167.54,167.5,1.35932129]
[1730430161905,2.9883,167.51,167.5,1.35932129]
[1730430165516,1.3278,167.53,167.5,1.35932129]
[1730430165719,12.90781731,167.56,167.5,1.35932129]
[1730430166315,2.9877,167.55,167.5,1.35932129]
[1730430166614,12.90781731,167.56,167.5,1.35932129]
[1730430167113,2.9879,167.54,167.5,1.35932129]
[1730430167503,12.90781731,167.56,167.5,1.35932129]
[1730430168310,2.9879,167.53,167.5,1.35932129]
[1730430172414,8.2645126,167.52,167.5,1.35932129]
[1730430173321,11.2527126,167.52,167.5,1.35932129]
[1730430176416,8.2645126,167.52,167.5,1.35932129]
[1730430179331,11.2528126,167.52,167.5,1.35932129]
[1730430179524,8.2645126,167.51,167.5,1.35932129]
[1730430179927,11.2528126,167.51,167.5,1.35932129]
[1730430180535,2.9881,167.52,167.5,1.35932129]
[1730430181927,8.2645126,167.53,167.5,1.35932129]
[1730430182126,11.2524126,167.54,167.5,1.35932129]
[1730430184325,8.2645126,167.54,167.5,9.62383389]
[1730430184536,2.9875,167.56,167.51,8.2645126]
[1730430184731,9.5407126,167.58,167.51,8.2645126]
[1730430184931,8.2645126,167.59,167.54,8.2645126]
[1730430185136,8.2645126,167.62,167.56,8.2645126]
[1730430185730,8.2645126,167.6,167.54,11.6045126]
[1730430185930,8.2645126,167.6,167.55,1.49401008]
[1730430186125,8.2645126,167.6,167.55,2.9875]
[1730430186623,2.9863,167.62,167.55,2.9875]
[1730430191340,2.9865,167.61,167.55,2.9875]
[1730430192450,2.9865,167.61,167.54,6.3276]
[1730430192630,2.9865,167.61,167.55,1.49396365]
[1730430192631,12.91489469,167.61,167.55,1.49396365]
[1730430192830,1.3173,167.6,167.51,3.34]
[1730430193137,2.9872,167.58,167.52,1.49416343]
[1730430193337,2.9872,167.58,167.53,1.49416343]
[1730430193539,2.9872,167.58,167.51,3.34]
[1730430193738,2.9872,167.58,167.52,1.49419512]
[1730430193939,2.9869,167.59,167.53,1.49419512]
[1730430194135,2.9869,167.59,167.54,1.49419512]
[1730430194444,3.34,167.63,167.51,16.25489469]
[1730430194445,16.25489469,167.63,167.51,16.25489469]
[1730430194638,2.9867,167.6,167.52,1.49409891]
[1730430194833,3.34,167.63,167.54,12.91489469]
[1730430195039,3.34,167.63,167.55,1.49409891]
[1730430195251,3.34,167.63,167.54,12.91489469]
[1730430195438,3.34,167.63,167.55,1.49397653]
[1730430195635,3.34,167.63,167.54,12.91489469]
[1730430195836,2.9866,167.61,167.55,1.49397258]
[1730430196041,2.9866,167.61,167.54,15.90259469]
[1730430196246,2.9866,167.61,167.55,1.49397424]
[1730430196550,2.9866,167.61,167.54,15.90259469]
[1730430196844,3.34,167.63,167.55,1.49394157]
[1730430197037,12.91489469,167.62,167.51,16.25489469]
[1730430197238,12.91489469,167.62,167.52,1.49400061]
[1730430197446,2.9873,167.57,167.51,3.34]
[1730430197640,2.9873,167.57,167.52,1.49413223]
[1730430197843,12.91489469,167.6,167.51,3.34]
[1730430198051,2.9875,167.56,167.52,1.49418429]
[1730430198238,12.91489469,167.57,167.5,1.35932129]
[1730430198440,12.91489469,167.57,167.51,1.49432365]
[1730430198638,2.9876,167.55,167.5,1.35932129]
[1730430200942,2.9879,167.53,167.5,1.35932129]
[1730430201457,12.91489469,167.57,167.5,1.35932129]
[1730430201951,12.91489469,167.55,167.5,1.35932129]
[1730430202548,2.9881,167.53,167.5,1.35932129]
[1730430205649,2.9883,167.51,167.5,1.35932129]
[1730430207147,12.91489469,167.53,167.5,1.35932129]
[1730430208449,8.26540352,167.51,167.5,1.35932129]
[1730430213849,11.25370352,167.51,167.5,1.35932129]
[1730430231300,8.26540352,167.51,167.5,1.35932129]
[1730430241282,8.26540352,167.56,167.5,1.35932129]
[1730430241578,8.26540352,167.57,167.51,8.26540352]
[1730430242070,8.26540352,167.57,167.52,1.49427673]
[1730430242267,8.26540352,167.57,167.52,2.988]
[1730430242463,8.26540352,167.57,167.53,1.49417558]
[1730430242684,3.34,167.62,167.5,12.96472481]
[1730430242685,8.26540352,167.56,167.5,12.96472481]
[1730430242898,3.34,167.62,167.5,1.35932129]
[1730430242899,8.26540352,167.51,167.5,1.35932129]
[1730430243980,8.26540352,167.52,167.5,1.35932129]
[1730430248403,11.25370352,167.51,167.5,1.35932129]
[1730430250511,2.9885,167.5,167.49,1.4393434]
[1730430254394,11.25390352,167.5,167.49,1.4393434]
[1730430254599,8.26540352,167.5,167.49,1.4393434]
[1730430257892,8.26540352,167.51,167.49,1.4393434]
[1730430258195,8.26540352,167.54,167.49,1.4393434]
[1730430258795,8.26540352,167.54,167.5,1.49447178]
[1730430259003,8.26540352,167.51,167.49,1.4393434]
[1730430259593,8.26540352,167.54,167.49,9.70474692]
[1730430259907,8.26540352,167.54,167.5,1.49441584]
[1730430260208,8.26540352,167.54,167.51,4.48271584]
[1730430260391,8.26540352,167.54,167.51,2.9883]
[1730430261492,8.26540352,167.57,167.52,11.25350352]
[1730430263489,2.9869,167.59,167.54,2.9877]
[1730430263490,8.26540352,167.59,167.54,2.9877]
[1730430263690,8.26540352,167.59,167.53,8.26540352]
[1730430263901,8.26540352,167.59,167.54,1.49422982]
[1730430264100,8.26540352,167.59,167.53,8.26540352]
[1730430264300,8.26540352,167.59,167.54,1.49420697]
[1730430264509,8.26540352,167.59,167.54,2.9876]
[1730430264703,2.9867,167.61,167.55,8.26540352]
[1730430264704,8.26540352,167.61,167.55,8.26540352]
[1730430265207,8.26540352,167.61,167.56,1.49413192]
[1730430265511,33.35863119,167.63,167.59,2.9868]
[1730430266596,8.26540352,167.63,167.59,2.9868]
[1730430268005,8.26540352,167.63,167.6,2.9866]
[1730430268207,8.26540352,167.65,167.59,8.26540352]
[1730430268394,8.26540352,167.65,167.61,2.9863]
[1730430270797,8.26540352,167.65,167.6,2.9866]
[1730430274713,0.02,167.67,167.64,8.26540352]
[1730430280211,8.28540352,167.67,167.61,8.26540352]
[1730430280406,8.28540352,167.67,167.61,11.58540352]
[1730430280814,11.27090352,167.67,167.61,14.57180352]
[1730430281002,8.28540352,167.67,167.61,11.58540352]
[1730430281199,8.28540352,167.67,167.63,8.26540352]
[1730430281414,0.02,167.67,167.63,8.26540352]
[1730430282002,0.02,167.67,167.63,11.25150352]
[1730430284124,2.9862,167.63,167.57,8.26540352]
[1730430284419,0.02,167.67,167.57,8.26540352]
[1730430284420,8.26540352,167.62,167.57,8.26540352]
[1730430284632,0.02,167.67,167.59,8.26540352]
[1730430284633,8.26540352,167.64,167.59,8.26540352]
[1730430284913,11.25110352,167.66,167.6,2.9866]
[1730430285116,8.26540352,167.66,167.61,8.26540352]
[1730430285708,8.26540352,167.66,167.62,2.9862]
[1730430286117,8.26540352,167.64,167.58,8.26540352]
[1730430286420,8.26540352,167.63,167.58,11.25240352]
[1730430289906,11.25150352,167.64,167.58,11.25240352]
[1730430290530,8.26540352,167.64,167.58,8.26540352]
[1730430290714,8.26540352,167.66,167.59,8.26540352]
[1730430291533,11.25120352,167.66,167.6,2.9867]
[1730430293320,11.25120352,167.66,167.61,11.25190352]
[1730430293524,0.02,167.67,167.62,8.26540352]
[1730430294218,8.26540352,167.65,167.59,8.26540352]
[1730430295222,11.25120352,167.65,167.59,11.25220352]
[1730430297926,2.9858,167.65,167.6,8.26540352]
[1730430302329,0.02,167.67,167.63,8.26540352]
[1730430302636,0.02,167.67,167.64,8.26540352]
[1730430303137,0.02,167.67,167.63,8.26540352]
[1730430303526,0.02,167.67,167.62,3.3]
[1730430303527,8.26540352,167.65,167.62,3.3]
[1730430303737,8.26540352,167.66,167.62,3.3]
[1730430304526,8.26540352,167.65,167.58,11.56540352]
[1730430304742,8.26540352,167.63,167.58,3.3]
[1730430305734,8.26540352,167.63,167.57,8.26540352]
[1730430305735,2.9865,167.62,167.57,8.26540352]
[1730430305927,8.26540352,167.61,167.56,6.2874]
[1730430306940,8.26540352,167.61,167.56,2.9874]
[1730430309333,11.25190352,167.62,167.56,11.25280352]
[1730430309640,11.25150352,167.64,167.58,8.26540352]
[1730430309843,8.26540352,167.64,167.58,8.26540352]
[1730430310033,8.26540352,167.64,167.59,2.9867]
[1730430310840,11.25140352,167.64,167.58,11.25240352]
[1730430311143,8.26540352,167.62,167.58,2.987]
[1730430312230,8.26540352,167.62,167.57,8.26540352]
[1730430312429,11.25180352,167.62,167.57,8.26540352]
[1730430312626,8.26540352,167.62,167.57,8.26540352]
[1730430313634,8.26540352,167.61,167.56,6.2874]
[1730430313941,8.26540352,167.6,167.54,11.25310352]
[1730430314153,11.25250352,167.58,167.52,8.26540352]
[1730430314329,8.26540352,167.56,167.51,4.6435]
[1730430314530,8.26540352,167.56,167.5,8.26540352]
[1730430314736,8.26540352,167.56,167.5,11.56540352]
[1730430314737,11.25280352,167.56,167.5,11.56540352]
[1730430314977,8.26540352,167.55,167.5,11.56540352]
[1730430315460,11.25320352,167.54,167.49,1.4393434]
[1730430315650,8.26540352,167.54,167.49,1.4393434]
[1730430316546,11.25320352,167.54,167.49,1.4393434]
[1730430316746,11.25320352,167.54,167.49,9.70474692]
[1730430317040,8.26540352,167.55,167.49,9.70474692]
[1730430317342,8.26540352,167.58,167.52,8.26540352]
[1730430317537,8.26540352,167.56,167.5,8.26540352]
[1730430319139,8.26540352,167.56,167.51,2.9882]
[1730430319642,8.26540352,167.56,167.5,8.26540352]
[1730430319846,11.25280352,167.56,167.5,11.25380352]
[1730430320233,8.26540352,167.55,167.5,2.9884]
[1730430322050,8.26540352,167.55,167.51,2.9883]
[1730430325645,8.26540352,167.57,167.51,8.26540352]
[1730430325844,8.26540352,167.59,167.54,8.26540352]
[1730430326046,3.3,167.64,167.56,8.26540352]
[1730430326047,8.26540352,167.61,167.56,8.26540352]
[1730430326448,11.25200352,167.61,167.56,8.26540352]
[1730430326856,11.25200352,167.61,167.56,11.25270352]
[1730430327058,11.25160352,167.63,167.57,8.26540352]
[1730430327257,8.26540352,167.63,167.57,8.26540352]
[1730430327449,8.26540352,167.63,167.58,2.987]
[1730430329058,11.25150352,167.64,167.59,8.26540352]
[1730430329248,11.25150352,167.64,167.59,11.25220352]
[1730430330662,11.25150352,167.64,167.59,8.26540352]
[1730430331748,8.26540352,167.63,167.58,2.987]
[1730430333263,11.25160352,167.63,167.58,2.987]
[1730430337662,4.0075,167.66,167.6,8.26540352]
[1730430337663,8.26540352,167.66,167.6,8.26540352]
[1730430337972,8.28540352,167.67,167.61,8.26540352]
[1730430338159,8.26540352,167.66,167.6,8.26540352]
[1730430338362,8.26540352,167.66,167.61,2.9865]
[1730430340162,8.28540352,167.67,167.62,11.25150352]
[1730430340464,0.02,167.67,167.63,8.26540352]
[1730430341260,0.02,167.67,167.64,2.986]
[1730430341967,0.02,167.67,167.63,8.26540352]
[1730430342159,8.28540352,167.67,167.63,2.9861]
[1730430343757,8.28540352,167.67,167.64,2.9859]
[1730430343758,0.02,167.67,167.64,2.9859]
[1730430344176,0.02,167.67,167.63,8.26540352]
[1730430344471,0.02,167.67,167.63,11.25150352]
[1730430344971,0.02,167.67,167.63,2.9861]
[1730430346167,11.25120352,167.65,167.61,3.3]
[1730430346568,8.26540352,167.65,167.61,3.3]
[1730430346772,2.9856,167.66,167.61,6.2865]
[1730430348574,2.9856,167.66,167.61,14.55190352]
[1730430349169,8.28540352,167.67,167.63,11.25150352]
[1730430349170,0.02,167.67,167.63,11.25150352]
[1730430349585,0.02,167.67,167.65,8.26540352]
[1730430349778,0.02,167.67,167.65,11.25110352]
[1730430351283,0.02,167.67,167.66,11.25100352]
[1730430351491,0.02,167.67,167.66,14.55100352]
[1730430351683,0.13721959,167.68,167.67,2.9854]
[1730430352686,0.38386138,167.69,167.68,2.9852]
[1730430352984,0.39410775,167.71,167.68,8.26540352]
[1730430353189,0.39410775,167.71,167.7,8.26540352]
[1730430354388,0.39410775,167.71,167.7,11.25030352]
[1730430355889,0.63991549,167.73,167.71,2.9847]
[1730430356183,0.63991549,167.73,167.71,14.55010352]
[1730430356386,0.63991549,167.73,167.72,2.9845]
[1730430357480,1.14191649,167.74,167.71,11.56540352]
[1730430357481,1.00366516,167.76,167.71,11.56540352]
[1730430357677,1.00366516,167.76,167.75,8.26540352]
[1730430360589,1.00366516,167.76,167.74,8.26540352]
[1730430360785,9.26906868,167.76,167.73,3.3]
[1730430360980,1.00366516,167.76,167.74,8.26540352]
[1730430363483,3.98746516,167.76,167.73,3.3]
[1730430363683,3.98746516,167.76,167.72,8.26540352]
[1730430364088,3.98746516,167.76,167.71,3.3]
[1730430364406,2.984,167.75,167.7,11.56540352]
[1730430364984,9.26906868,167.76,167.7,3.3]
[1730430367289,9.26906868,167.76,167.69,8.26540352]
[1730430367290,8.26540352,167.72,167.67,11.56540352]
[1730430367499,8.26540352,167.73,167.69,8.26540352]
[1730430368286,2.31196516,167.76,167.7,8.26540352]
[1730430369193,5.29596516,167.76,167.7,11.25020352]
[1730430370188,2.31196516,167.76,167.71,2.9846]
[1730430370393,2.31196516,167.76,167.7,8.26540352]
[1730430370895,5.29586516,167.76,167.7,8.26540352]
[1730430371194,2.31196516,167.76,167.69,8.26540352]
[1730430371493,8.26540352,167.72,167.67,11.56540352]
[1730430372598,11.25000352,167.72,167.67,11.56540352]
[1730430372999,8.26540352,167.72,167.67,14.55080352]
[1730430373499,2.9844,167.73,167.67,14.55080352]
[1730430373692,2.984,167.75,167.7,8.26540352]
[1730430374207,1.00366516,167.76,167.7,11.25020352]
[1730430374501,1.00366516,167.76,167.73,8.26540352]
[1730430374893,1.00366516,167.76,167.73,11.24960352]
[1730430380697,1.00366516,167.76,167.73,2.9842]
[1730430382991,1.00366516,167.76,167.72,11.56540352]
[1730430383213,12.25286868,167.76,167.71,3.28]
[1730430383706,9.26906868,167.76,167.71,6.2647]
[1730430384208,9.26906868,167.76,167.7,11.54540352]
[1730430385005,12.25296868,167.76,167.7,11.54540352]
[1730430385808,3.98756516,167.76,167.72,8.26540352]
[1730430388212,1.00366516,167.76,167.73,8.26540352]
[1730430388614,1.00366516,167.76,167.72,11.24980352]
[1730430390615,12.25306868,167.76,167.7,11.54540352]
[1730430391113,3.98766516,167.76,167.71,8.26540352]
[1730430392203,1.00366516,167.76,167.73,8.26540352]
[1730430392404,1.00366516,167.76,167.7,3.28]
[1730430392405,1.00366516,167.76,167.71,8.26540352]
[1730430393115,1.00366516,167.76,167.71,11.25000352]
[1730430393314,1.00366516,167.76,167.71,8.26540352]
[1730430394416,1.00366516,167.76,167.72,2.9845]
[1730430395517,1.00366516,167.76,167.73,8.26540352]
[1730430395916,1.00366516,167.76,167.75,8.26540352]
[1730430396119,1.00366516,167.76,167.75,11.54540352]
[1730430396619,1.22715408,167.77,167.75,11.54540352]
[1730430396809,1.65835106,167.78,167.76,8.26540352]
[1730430398115,1.65835106,167.78,167.77,2.9836]
[1730430404630,1.80942744,167.79,167.78,2.9835]
[1730430404929,1.85522819,167.81,167.78,8.26540352]
[1730430405116,1.85522819,167.81,167.8,8.26540352]
[1730430405318,1.85522819,167.81,167.8,11.54540352]
[1730430405928,1.85522819,167.81,167.8,3.28]
[1730430411819,1.85522819,167.81,167.76,11.54540352]
[1730430412030,2.9838,167.77,167.73,8.26540352]
[1730430412235,1.85522819,167.81,167.76,8.26540352]
[1730430412438,1.85522819,167.81,167.77,8.26540352]
[1730430415736,4.83822819,167.81,167.77,8.26540352]
[1730430416847,4.83822819,167.81,167.76,8.26540352]
[1730430418042,8.26540352,167.8,167.74,8.26540352]
[1730430418348,8.26540352,167.8,167.75,2.984]
[1730430418560,8.26540352,167.8,167.73,11.54540352]
[1730430418754,8.26540352,167.8,167.73,8.26540352]
[1730430418755,8.26540352,167.79,167.73,8.26540352]
[1730430419061,2.9836,167.78,167.73,8.26540352]
[1730430419248,1.3797,167.8,167.7,8.26540352]
[1730430419249,8.26540352,167.77,167.7,8.26540352]
[1730430419444,8.26540352,167.77,167.7,11.54540352]
[1730430419856,11.24920352,167.77,167.7,14.53030352]
[1730430422959,5.5256,167.78,167.74,8.26540352]
[1730430423346,12.62830352,167.8,167.74,8.26540352]
[1730430423767,8.26540352,167.77,167.73,2.9842]
[1730430423949,8.26540352,167.77,167.72,11.24990352]
[1730430424351,8.26540352,167.77,167.72,2.9845]
[1730430425858,2.9839,167.76,167.71,8.26540352]
[1730430426266,11.24930352,167.76,167.71,8.26540352]
[1730430427761,8.26540352,167.76,167.71,8.26540352]
[1730430428071,8.26540352,167.76,167.7,3.28]
[1730430428072,2.984,167.75,167.7,3.28]
[1730430428972,8.26540352,167.76,167.7,3.28]
[1730430429167,8.26540352,167.76,167.71,8.26540352]
[1730430429369,8.26540352,167.77,167.71,8.26540352]
[1730430429679,8.26540352,167.77,167.72,8.26540352]
[1730430430482,11.24910352,167.77,167.72,8.26540352]
[1730430430673,8.26540352,167.78,167.73,8.26540352]
[1730430430871,9.64510352,167.8,167.73,8.26540352]
[1730430431074,11.24890352,167.78,167.72,8.26540352]
[1730430431769,11.24890352,167.78,167.72,11.24980352]
[1730430433171,8.26540352,167.75,167.69,11.54540352]
[1730430433371,8.26540352,167.75,167.7,1.49278967]
[1730430433570,8.26540352,167.75,167.69,11.54540352]
[1730430433772,11.24960352,167.75,167.7,1.49278933]
[1730430434078,11.24960352,167.75,167.7,8.26540352]
[1730430434781,11.24920352,167.77,167.7,11.25020352]
[1730430434990,8.26540352,167.78,167.72,8.26540352]
[1730430435584,11.24890352,167.78,167.72,11.24990352]
[1730430436873,8.26540352,167.78,167.73,11.24960352]
[1730430437076,2.9833,167.79,167.73,11.24960352]
[1730430437473,1.3797,167.8,167.75,11.24940352]
[1730430438074,1.3797,167.8,167.76,2.9838]
[1730430438280,10.12063171,167.81,167.77,8.26540352]
[1730430439197,1.85522819,167.81,167.78,8.26540352]
[1730430439487,1.85522819,167.81,167.8,8.26540352]
[1730430440584,1.85522819,167.81,167.77,2.9836]
[1730430444078,1.85522819,167.81,167.76,15.87737634]
[1730430445499,1.85522819,167.81,167.77,1.49224697]
[1730430445783,1.85522819,167.81,167.76,15.87737634]
[1730430445987,1.85522819,167.81,167.77,1.49211912]
[1730430446183,1.85522819,167.81,167.78,1.49211912]
[1730430446389,1.85522819,167.81,167.77,2.9836]
[1730430447691,1.85522819,167.81,167.78,2.9834]
[1730430447882,1.85522819,167.81,167.76,12.89357634]
[1730430448085,1.85522819,167.81,167.77,1.49213154]
[1730430448283,1.85522819,167.81,167.76,12.89357634]
[1730430448483,1.85522819,167.81,167.77,1.49213174]
[1730430448684,1.85522819,167.81,167.76,12.89357634]
[1730430448878,1.85522819,167.81,167.77,1.49213291]
[1730430449078,1.85522819,167.81,167.76,12.89357634]
[1730430449377,1.85522819,167.81,167.77,4.47573164]
[1730430449580,1.85522819,167.81,167.77,2.9836]
[1730430455990,4.83832819,167.81,167.74,15.87767634]
[1730430456191,4.83832819,167.81,167.75,4.75225541]
[1730430456387,1.85522819,167.81,167.75,3.26]
[1730430456689,1.85522819,167.81,167.76,14.38581679]
[1730430456991,1.85522819,167.81,167.77,1.49212122]
[1730430457198,1.85522819,167.81,167.78,1.49212122]
[1730430457490,1.85522819,167.81,167.76,12.89357634]
[1730430457691,1.85522819,167.81,167.79,2.9832]
[1730430457891,1.85522819,167.81,167.8,3.26]
[1730430458394,2.21267885,167.82,167.8,4.75190235]
[1730430458692,2.21267885,167.82,167.8,3.26]
[1730430459086,2.21267885,167.82,167.81,2.9829]
[1730430460390,2.21267885,167.82,167.81,15.87647634]
[1730430460585,1.5448353,167.83,167.82,2.9828]
[1730430461292,2.01253892,167.85,167.81,8.24714571]
[1730430461598,2.1995757,167.87,167.84,8.24714571]
[1730430461780,2.1995757,167.87,167.86,11.22914571]
[1730430468796,2.1995757,167.87,167.86,8.24714571]
[1730430468996,2.1995757,167.87,167.83,8.24714571]
[1730430469296,2.9823,167.85,167.81,11.50714571]
[1730430469499,2.1995757,167.87,167.81,11.50714571]
[1730430470296,2.9821,167.86,167.81,11.50714571]
[1730430470499,2.1995757,167.87,167.81,11.50714571]
[1730430470708,8.24714571,167.86,167.81,11.50714571]
[1730430470901,2.9822,167.85,167.81,11.50714571]
[1730430471409,2.9825,167.84,167.81,3.26]
[1730430472690,2.9822,167.85,167.81,3.26]
[1730430475108,2.9822,167.85,167.78,2.9835]
[1730430475109,8.24714571,167.83,167.77,8.24714571]
[1730430475307,9.55634571,167.82,167.78,3.26]